bitfinex-derivatives/quotes_ETHF0:USTF0_20251008
["timestamp","ask_amount","ask_price","bid_price","bid_amount"]
[1759886106835,12.3872082,4464.3,4463.3,0.3263]
[1759886106836,0.6359,4463.4,4463.3,0.3263]
[1759886107038,0.6563,4463.4,4463.3,0.93708]
[1759886107244,3.60965123,4463.4,4463.3,0.93708]
[1759886107842,3.60965123,4463.4,4463.3,0.93874158]
[1759886108751,4.21732123,4463.4,4463.3,0.00166158]
[1759886112753,4.70245699,4463.4,4463.3,0.00166158]
[1759886113854,3.78772123,4463.4,4463.3,0.32796158]
[1759886114048,4.01272123,4463.4,4463.3,0.32796158]
[1759886114754,4.21732123,4463.4,4463.3,0.32796158]
[1759886115547,4.01272123,4463.4,4463.3,0.53566158]
[1759886115744,4.21732123,4463.4,4463.3,0.32796158]
[1759886115944,4.01272123,4463.4,4463.3,0.53566158]
[1759886116750,4.70234755,4463.4,4463.3,0.32796158]
[1759886116950,3.60965123,4463.4,4463.3,1.15044158]
[1759886117257,3.17835123,4463.4,4463.3,1.15044158]
[1759886117945,3.2078,4463.7,4463.6,0.40306]
[1759886118255,0.403,4464.2,4464.1,0.534]
[1759886118256,3.6391,4464.2,4464.1,0.534]
[1759886118555,7.29018446,4464.2,4464.1,0.534]
[1759886118761,7.69318446,4464.2,4464.1,0.534]
[1759886119055,0.4313,4463.6,4463.5,0.4588]
[1759886119259,0.6563,4463.6,4463.5,0.4588]
[1759886119453,3.59721264,4463.6,4463.5,0.6665]
[1759886120052,3.59721264,4463.6,4463.5,0.8782]
[1759886120053,2.94091264,4463.6,4463.5,0.8782]
[1759886120252,3.8183,4464.2,4464.1,0.2077]
[1759886120558,7.6701611,4464.2,4464.1,0.534]
[1759886120742,7.6701611,4464.2,4464.1,0.3263]
[1759886121046,7.8747611,4464.2,4464.1,0.3263]
[1759886121654,7.4451611,4464.2,4464.1,0.534]
[1759886121855,7.6701611,4464.2,4464.1,0.534]
[1759886122549,7.8747611,4464.2,4464.1,0.3263]
[1759886122951,7.8747611,4464.2,4464.1,0.534]
[1759886123151,7.8747611,4464.2,4464.1,0.3263]
[1759886124455,7.8747611,4464.2,4464.1,0.93701]
[1759886124655,7.6701611,4464.2,4464.1,0.93701]
[1759886124957,7.6701611,4464.2,4464.1,0.534]
[1759886125854,7.0421611,4464.2,4464.1,1.14871]
[1759886126153,3.14270567,4464.2,4464.1,1.14871]
[1759886126351,3.57400567,4464.2,4464.1,0.534]
[1759886126551,0.4313,4463.8,4463.7,0.93705]
[1759886126755,0.6563,4463.8,4463.7,1.14875]
[1759886127752,0.2075,4463.8,4463.7,1.14875]
[1759886127961,0.81841,4464.1,4464.0,1.29462]
[1759886128153,0.98341,4464.1,4464.0,1.29462]
[1759886128355,3.89513736,4464.1,4464.0,1.29462]
[1759886132160,1.02255,4463.7,4463.6,0.71095]
[1759886132458,1.04345,4463.7,4463.6,0.93685]
[1759886132659,1.04345,4463.7,4463.6,1.15895]
[1759886133559,0.6404,4463.7,4463.6,1.15895]
[1759886134156,0.4326,4463.7,4463.6,1.15895]
[1759886134361,0.225,4463.7,4463.6,1.15895]
[1759886135260,0.40302,4464.0,4463.9,0.40303]
[1759886135456,0.83562,4464.0,4463.9,1.15893]
[1759886135658,3.91616834,4464.0,4463.9,0.3079]
[1759886135961,4.12026834,4464.0,4463.9,0.3079]
[1759886136162,0.81845,4463.7,4463.6,0.62896]
[1759886136359,0.225,4463.7,4463.6,0.85106]
[1759886136560,3.38608985,4463.7,4463.6,1.15896]
[1759886136764,3.99693985,4463.7,4463.6,0.7559]
[1759886137262,4.20103985,4463.7,4463.6,0.5338]
[1759886137463,3.99693985,4463.7,4463.6,0.5338]
[1759886137654,3.99693985,4463.7,4463.6,0.93686]
[1759886138467,3.38608985,4463.7,4463.6,1.15896]
[1759886138659,3.78913985,4463.7,4463.6,1.15896]
[1759886138853,3.99693985,4463.7,4463.6,0.7559]
[1759886139059,3.99693985,4463.7,4463.6,1.15896]
[1759886139254,3.79838985,4463.7,4463.5,0.1325]
[1759886139464,3.79838985,4463.7,4463.4,0.7273]
[1759886139465,0.425,4463.5,4463.4,0.7273]
[1759886139657,3.78983985,4463.7,4463.6,0.4145]
[1759886139965,3.70278158,4463.7,4463.6,1.13036]
[1759886140161,2.86643158,4463.7,4463.6,1.13036]
[1759886140469,0.002905,4464.3,4464.2,1.1303]
[1759886140761,0.2083,4465.2,4465.1,0.40291]
[1759886140964,0.90859427,4465.2,4465.1,1.13021]
[1759886141267,4.08935405,4465.2,4465.1,1.13021]
[1759886141770,4.09118422,4465.2,4465.1,1.13021]
[1759886142268,3.60758995,4465.2,4465.1,1.13021]
[1759886142470,3.60758995,4465.2,4465.1,0.7273]
[1759886142771,1.03242,4465.1,4465.0,0.1259]
[1759886142970,0.425,4465.1,4464.5,0.1259]
[1759886143269,0.2083,4464.6,4464.5,41.74337]
[1759886143668,0.2083,4464.6,4464.5,42.05617]
[1759886144068,0.2083,4464.6,4464.5,1.25617]
[1759886145768,0.225,4464.7,4464.5,1.25617]
[1759886145971,0.225,4464.7,4464.5,0.94337]
[1759886146171,0.225,4464.7,4464.6,0.7273]
[1759886147568,0.4333,4464.7,4464.6,0.7273]
[1759886148364,0.225,4464.7,4464.6,0.7273]
[1759886149181,0.4333,4464.7,4464.6,0.7273]
[1759886149571,0.4333,4464.7,4464.6,1.13026]
[1759886149881,0.83626,4464.7,4464.6,1.13026]
[1759886155687,0.61122,4465.1,4465.0,0.94332]
[1759886155984,3.08516427,4465.1,4465.0,1.25612]
[1759886156181,0.00183017,4465.2,4465.1,0.40292]
[1759886156486,0.82974017,4465.2,4465.1,0.7273]
[1759886157185,0.60723,4465.0,4464.9,0.3266]
[1759886157483,3.89562928,4465.0,4464.9,0.3266]
[1759886157684,3.89562928,4465.0,4464.6,0.93526]
[1759886157685,0.61566,4464.7,4464.6,0.93526]
[1759886157887,0.84046,4464.7,4464.6,0.93526]
[1759886158089,3.7170432,4464.7,4464.6,0.93526]
[1759886158592,3.9213432,4464.7,4464.6,0.3266]
[1759886159685,3.9213432,4464.7,4464.6,0.40296]
[1759886161095,3.9213432,4464.7,4464.6,0.72956]
[1759886161390,3.9213432,4464.7,4464.6,0.3266]
[1759886162288,3.9213432,4464.7,4464.6,0.72956]
[1759886162490,3.9213432,4464.7,4464.6,0.93526]
[1759886162994,3.7170432,4464.7,4464.6,0.93526]
[1759886163689,3.3140832,4464.7,4464.6,1.15496]
[1759886163895,3.7170432,4464.7,4464.6,1.15496]
[1759886164090,3.7170432,4464.7,4464.6,0.752]
[1759886164284,3.7170432,4464.7,4464.6,1.15496]
[1759886164885,3.7170432,4464.7,4464.6,0.752]
[1759886165591,3.9213432,4464.7,4464.6,0.3266]
[1759886165791,4.1463432,4464.7,4464.6,0.3266]
[1759886166196,0.4375,4464.3,4464.2,3.4135]
[1759886166396,1.26979,4464.3,4464.2,3.5344]
[1759886166596,4.1304316,4464.3,4464.2,3.5344]
[1759886166898,4.1304316,4464.3,4464.2,3.9374]
[1759886169900,4.1304316,4464.3,4464.2,3.5344]
[1759886170193,0.417,4464.1,4463.6,0.3266]
[1759886170398,1.00752,4464.2,4463.5,3.2078]
[1759886170399,1.04486,4463.6,4463.5,3.2078]
[1759886170594,1.76231306,4463.6,4463.5,3.2078]
[1759886170799,1.76231306,4463.6,4463.0,0.40311]
[1759886170800,1.04487,4463.4,4463.0,0.40311]
[1759886171099,4.62341931,4463.4,4462.9,3.55680721]
[1759886171289,4.13096625,4463.4,4462.9,3.55680721]
[1759886171493,4.13096625,4463.4,4462.9,3.95992721]
[1759886171692,4.13096625,4463.4,4462.9,3.55680721]
[1759886171893,3.50289625,4463.4,4462.9,3.23020721]
[1759886172089,2.86109625,4463.4,4463.3,0.75366158]
[1759886172394,1.1928812,4464.5,4464.4,0.40298]
[1759886172599,1.6305812,4464.5,4464.4,1.15498]
[1759886172800,3.1297229,4464.5,4464.4,1.15498]
[1759886172993,3.1420229,4464.5,4464.4,1.15498]
[1759886173595,2.9170229,4464.5,4464.4,1.15498]
[1759886173800,3.1420229,4464.5,4464.4,1.15498]
[1759886173999,0.2127,4464.7,4464.6,1.15496]
[1759886174194,0.00183017,4465.2,4465.1,1.15492]
[1759886174400,0.22683017,4465.2,4465.1,1.15492]
[1759886174597,3.59525774,4465.2,4465.1,0.752]
[1759886174997,3.37025774,4465.2,4465.1,0.752]
[1759886175201,3.59525774,4465.2,4465.1,0.752]
[1759886175401,4.09069285,4465.2,4465.1,0.752]
[1759886175998,0.4291,4464.7,4464.6,0.72956]
[1759886176205,0.8668,4464.7,4464.6,0.3266]
[1759886176399,3.54453246,4464.7,4464.6,0.752]
[1759886176601,3.10703246,4464.7,4464.6,0.752]
[1759886177907,3.31973246,4464.7,4464.6,0.752]
[1759886178109,0.4375,4464.5,4464.4,3.7401]
[1759886178307,0.6625,4464.5,4464.4,3.7401]
[1759886178605,3.59980312,4464.5,4464.4,3.9598]
[1759886179408,3.80410312,4464.5,4464.4,0.5323]
[1759886179609,3.80410312,4464.5,4464.4,0.3266]
[1759886180206,3.80410312,4464.5,4464.3,0.40299]
[1759886180409,3.80410312,4464.5,4464.4,0.3266]
[1759886181204,4.20708312,4464.5,4464.4,0.3266]
[1759886181402,0.6418,4464.3,4464.2,0.72959]
[1759886181610,0.8668,4464.3,4464.2,0.93529]
[1759886181912,3.54632724,4464.3,4464.2,0.93529]
[1759886182412,3.54632724,4464.3,4464.2,0.5323]
[1759886182909,3.75062724,4464.3,4464.2,0.5323]
[1759886183117,3.75062724,4464.3,4464.2,0.3266]
[1759886183411,3.75062724,4464.3,4463.8,3.2078]
[1759886183412,0.6418,4463.9,4463.8,3.93744]
[1759886183615,0.6418,4463.9,4463.5,0.85746]
[1759886183616,0.6418,4463.6,4463.5,0.85746]
[1759886183911,0.6418,4463.6,4463.3,0.00166158]
[1759886183912,0.6418,4463.4,4463.3,0.00166158]
[1759886184113,0.4375,4463.0,4462.9,0.34900721]
[1759886184304,1.3609185,4463.0,4462.9,0.02240721]
[1759886184610,3.83533243,4463.0,4462.9,0.02240721]
[1759886185013,3.83533243,4463.0,4462.9,0.02521038]
[1759886185310,3.93663243,4463.0,4462.9,0.02521038]
[1759886185911,3.93663243,4463.0,4461.7,3.2078]
[1759886186210,0.4375,4460.8,4460.6,3.2078]
[1759886186516,0.4375,4460.2,4460.1,0.5323]
[1759886186708,0.6625,4460.2,4460.1,0.5323]
[1759886186911,0.6625,4460.2,4460.1,0.752]
[1759886187107,0.00191111,4460.2,4460.1,0.75371762]
[1759886187410,0.44411111,4460.2,4460.1,0.75371762]
[1759886187616,0.22691111,4460.2,4460.1,0.75371762]
[1759886188114,6.486e-05,4460.2,4460.1,5.75371762]
[1759886188614,3.2078,4461.4,4461.3,0.4357]
[1759886188809,3.4328,4461.4,4461.3,1.15856]
[1759886189009,6.12343735,4461.4,4461.3,1.15856]
[1759886189308,3.14063735,4461.4,4461.3,1.15856]
[1759886189509,3.1423749,4461.4,4461.3,1.15856]
[1759886189809,3.1423749,4461.4,4461.3,6.15856]
[1759886189810,0.00173755,4461.4,4461.3,6.15856]
[1759886191405,0.00173755,4461.4,4461.3,1.15856]
[1759886191610,3.3388539,4461.4,4461.3,1.15856]
[1759886192810,0.00173755,4461.4,4461.3,1.15856]
[1759886195811,0.21893755,4461.4,4461.3,1.15856]
[1759886196708,0.44453755,4461.4,4461.3,1.15856]
[1759886196913,3.33763015,4461.4,4461.3,1.15856]
[1759886197117,2.89483015,4461.4,4461.3,1.15856]
[1759886197319,3.11203015,4461.4,4461.3,1.15856]
[1759886198115,0.00173755,4461.4,4461.3,1.15856]
[1759886198520,0.00173755,4461.4,4461.3,6.15856]
[1759886198723,0.2172,4462.6,4462.5,0.8859]
[1759886198924,0.6678,4462.6,4462.5,0.8859]
[1759886199127,3.60123386,4462.6,4462.5,0.8859]
[1759886199625,3.6039767,4462.6,4462.5,0.6715]
[1759886200715,3.1611767,4462.6,4462.5,0.8904]
[1759886201317,3.5819767,4462.6,4462.5,0.3196]
[1759886201516,0.4208,4462.4,4462.3,0.2169]
[1759886201824,0.44324284,4462.6,4462.5,0.3498]
[1759886202019,0.64854284,4462.6,4462.5,0.6867]
[1759886202320,3.50512331,4462.6,4462.5,0.6867]
[1759886204015,3.07482331,4462.6,4462.5,0.9056]
[1759886204216,3.08432331,4462.6,4462.5,0.9056]
[1759886204417,3.29982331,4462.6,4462.5,0.9056]
[1759886204924,0.00274284,4462.6,4462.5,0.9056]
[1759886206122,0.00274284,4462.6,4462.5,1.30875]
[1759886208121,0.82669284,4462.6,4462.5,0.3369]
[1759886208320,3.51712059,4462.6,4462.3,0.40317]
[1759886208519,0.82396,4462.4,4462.3,0.62007]
[1759886208723,0.82396,4462.4,4462.3,0.83897]
[1759886209022,3.73783775,4462.4,4462.3,1.17587]
[1759886209417,2.91387775,4462.4,4462.3,4.38367]
[1759886210021,0.00274284,4462.6,4462.3,4.38367]
[1759886210022,0.00274284,4462.6,4462.5,1.30875]
[1759886210217,3.2078,4463.7,4463.6,1.17576]
[1759886210622,3.2078,4463.7,4463.6,6.17576]
[1759886210820,0.225,4464.2,4464.1,0.40301]
[1759886211023,0.225,4464.2,4464.1,1.17571]
[1759886211228,3.07950884,4464.2,4464.1,1.17760895]
[1759886211424,2.85450884,4464.2,4464.1,1.17760895]
[1759886211831,0.00286087,4464.2,4464.1,1.17760895]
[1759886213125,0.82666087,4464.2,4464.1,0.77459895]
[1759886213430,0.42366087,4464.2,4464.1,0.77459895]
[1759886214520,0.21836087,4464.2,4464.1,0.77459895]
[1759886214722,0.00286087,4464.2,4464.1,0.77459895]
[1759886216927,0.21836087,4464.2,4464.1,0.77459895]
[1759886217434,0.00286087,4464.2,4464.1,0.77459895]
[1759886218632,4.59659503,4466.0,4465.5,0.1228]
[1759886218837,4.59659503,4466.0,4465.8,0.7771]
[1759886218838,1.56601729,4465.9,4465.8,0.7771]
[1759886219129,1.56601729,4465.9,4465.0,0.1228]
[1759886219130,0.4317,4465.3,4465.2,0.5562]
[1759886219330,0.93816729,4465.3,4465.2,0.5562]
[1759886219536,3.85461116,4465.3,4465.2,0.7771]
[1759886219832,3.85461116,4465.3,4464.8,40.8]
[1759886219833,0.4317,4464.9,4464.8,40.8]
[1759886220031,0.4317,4464.9,4464.8,41.1335]
[1759886220940,0.4317,4464.9,4464.8,0.5562]
[1759886221139,3.49944746,4464.9,4464.8,0.3335]
[1759886221337,3.72444746,4464.9,4464.8,0.3335]
[1759886221944,2.88574746,4464.9,4464.8,0.7771]
[1759886222539,3.31744746,4464.9,4464.8,0.5562]
[1759886222742,0.4317,4464.4,4464.3,0.3335]
[1759886222942,1.05968,4464.4,4464.3,0.3335]
[1759886223139,4.20441442,4464.4,4464.3,0.3335]
[1759886223339,1.0167,4464.2,4464.1,0.00189895]
[1759886223841,3.97943442,4464.2,4464.1,0.00189895]
[1759886224042,3.97943442,4464.2,4464.1,0.33539895]
[1759886224646,3.39443442,4464.2,4464.1,0.77899895]
[1759886225237,2.96273442,4464.2,4464.1,0.77899895]
[1759886225445,0.182,4465.6,4464.8,0.3335]
[1759886225643,3.6395,4465.0,4464.9,0.5562]
[1759886225849,3.8645,4465.0,4464.9,0.5562]
[1759886226148,6.75434681,4465.0,4464.9,0.5562]
[1759886226540,6.52934681,4465.0,4464.9,0.5562]
[1759886226742,6.75434681,4465.0,4464.9,0.3335]
[1759886226947,0.83466,4464.6,4464.5,1.08197]
[1759886227137,1.05966,4464.6,4464.5,1.08197]
[1759886227637,4.17342242,4464.6,4464.5,0.3335]
[1759886228150,0.83468,4464.4,4464.3,0.73649]
[1759886228448,3.75320652,4464.4,4464.3,0.73649]
[1759886228945,3.93520652,4464.4,4464.3,0.3335]
[1759886229158,3.35022652,4464.4,4464.3,0.5562]
[1759886229448,3.57522652,4464.4,4464.3,0.7771]
[1759886229643,3.14352652,4464.4,4464.3,0.7771]
[1759886230449,3.2078,4465.0,4464.9,1.18004]
[1759886230450,3.4287,4465.0,4464.9,1.18004]
[1759886230643,3.6537,4465.0,4464.9,1.18004]
[1759886230839,6.58089331,4465.0,4464.9,1.18004]
[1759886231045,6.79169331,4465.0,4464.9,0.7771]
[1759886231244,1.01666,4464.6,4464.5,0.3335]
[1759886231444,0.4317,4464.3,4464.2,0.9592]
[1759886231650,0.6567,4464.3,4464.2,1.1801]
[1759886232040,0.4317,4464.9,4464.8,0.4436]
[1759886232246,0.4317,4464.6,4464.5,0.3455]
[1759886232451,0.6567,4464.6,4464.5,0.679]
[1759886232652,3.62333142,4464.6,4464.5,0.679]
[1759886232945,3.62333142,4464.6,4464.5,0.8999]
[1759886233147,3.39833142,4464.6,4464.5,0.8999]
[1759886233346,3.18753142,4464.6,4464.5,0.8999]
[1759886233546,3.41253142,4464.6,4464.5,0.8999]
[1759886233747,2.96663142,4464.6,4464.5,0.8999]
[1759886233950,0.00270907,4465.3,4465.2,1.18001]
[1759886234147,0.22770907,4465.3,4465.2,1.18001]
[1759886234340,0.00270907,4465.3,4465.2,1.18001]
[1759886234547,0.00270907,4465.3,4465.2,46.98001]
[1759886234851,0.62371,4466.4,4466.3,0.5562]
[1759886235051,0.84871,4466.4,4466.3,0.5562]
[1759886235244,3.71669622,4466.4,4466.3,0.5562]
[1759886235447,3.71669622,4466.4,4466.3,0.7771]
[1759886235646,3.71950076,4466.4,4466.3,0.7771]
[1759886235852,3.93130076,4466.4,4466.3,0.7771]
[1759886236151,3.93130076,4466.4,4466.0,0.52563]
[1759886236152,0.83453,4466.1,4466.0,0.4563]
[1759886236352,1.06053,4466.1,4466.0,0.679]
[1759886236552,4.02675729,4466.1,4466.0,0.679]
[1759886237556,3.62392729,4466.1,4466.0,0.679]
[1759886237753,3.62392729,4466.1,4466.0,0.8999]
[1759886238156,3.62292729,4466.1,4466.0,0.8999]
[1759886238357,0.00280454,4466.4,4466.3,0.84641]
[1759886238648,0.00280454,4466.4,4466.3,0.7771]
[1759886238649,2.91527798,4466.4,4466.3,0.7771]
[1759886239350,3.34697798,4466.4,4466.3,0.5562]
[1759886240858,3.57197798,4466.4,4466.3,0.7771]
[1759886241054,3.34697798,4466.4,4466.3,0.7771]
[1759886241254,3.57197798,4466.4,4466.3,0.7771]
[1759886243056,0.4317,4465.3,4465.2,41.1335]
[1759886243357,0.4317,4465.3,4465.2,0.5562]
[1759886243753,3.34494789,4465.3,4465.2,0.5562]
[1759886243951,3.34494789,4465.3,4464.6,41.026]
[1759886243952,0.40291,4465.2,4464.5,3.3306]
[1759886244158,4.25547816,4465.3,4464.5,3.95627]
[1759886244159,0.4317,4464.6,4464.5,3.95627]
[1759886244456,0.4469,4464.6,4464.5,4.17717]
[1759886244655,0.4469,4464.6,4464.5,4.51067]
[1759886246955,0.40291,4465.2,4464.5,3.6641]
[1759886247156,0.40278,4466.7,4466.1,0.3348]
[1759886247455,0.40278,4466.7,4466.5,0.4577]
[1759886247456,3.42944975,4466.6,4466.5,0.4577]
[1759886247662,0.4028,4466.4,4466.0,0.1229]
[1759886247862,0.1844,4466.5,4466.3,0.3348]
[1759886248162,0.58983962,4466.5,4466.4,0.3348]
[1759886248356,0.40543962,4466.5,4466.4,0.3348]
[1759886248560,2.91006989,4466.5,4466.4,0.3348]
[1759886251657,3.31286989,4466.5,4466.4,0.3348]
[1759886252461,2.91006989,4466.5,4466.4,0.3348]
[1759886252657,3.13606989,4466.5,4466.4,0.3348]
[1759886252860,3.13606989,4466.5,4466.4,0.7759]
[1759886253458,0.00263962,4466.5,4466.4,0.7759]
[1759886253652,0.00263962,4466.5,4466.4,5.7759]
[1759886254463,0.00263962,4466.5,4466.4,5.95141898]
[1759886255162,1.21308,4467.9,4466.4,5.95141898]
[1759886255163,3.2078,4467.6,4467.5,0.8604]
[1759886255467,6.27765595,4467.6,4467.5,0.8604]
[1759886255669,3.2078,4467.6,4467.5,0.8604]
[1759886255967,0.022,4467.9,4467.8,0.73748]
[1759886256266,0.02390164,4467.9,4467.8,0.73971497]
[1759886257967,0.02390164,4467.9,4467.8,1.18081497]
[1759886258365,3.2078,4468.3,4468.2,1.17854]
[1759886258855,3.2078,4469.0,4468.8,1.17849]
[1759886259060,3.2078,4469.0,4468.9,0.7759]
[1759886259364,0.00256728,4469.0,4468.9,0.7759]
[1759886259560,0.00256728,4469.0,4468.9,0.3348]
[1759886260161,0.00256728,4469.0,4468.9,5.3348]
[1759886260464,0.00256728,4469.0,4468.9,0.5608]
[1759886261067,0.00256728,4469.0,4468.9,41.3608]
[1759886261559,0.00256728,4469.0,4468.9,41.1348]
[1759886262664,3.08157414,4469.0,4468.9,0.3348]
[1759886262871,0.4026,4468.7,4468.5,3.73331]
[1759886263068,0.4026,4468.7,4468.6,0.312]
[1759886263471,0.40265,4468.1,4468.0,0.4349]
[1759886263876,3.37668193,4468.1,4468.0,0.4349]
[1759886265070,2.97403193,4468.1,4468.0,0.4349]
[1759886265376,0.40264,4468.2,4468.0,0.52556]
[1759886265574,2.96713996,4468.6,4468.5,0.4441]
[1759886265771,0.226,4468.8,4468.6,0.312]
[1759886265971,3.2078,4468.9,4468.8,0.312]
[1759886267871,6.1694947,4468.9,4468.8,0.312]
[1759886269775,0.00256728,4469.0,4468.8,0.312]
[1759886269974,0.00256728,4469.0,4468.9,0.71458]
[1759886271775,0.00256728,4469.0,4468.9,0.312]
[1759886272279,0.00256728,4469.0,4468.9,3.5198]
[1759886272476,3.4338,4469.9,4469.8,0.4025]
[1759886272679,3.4338,4469.9,4469.8,0.7145]
[1759886272881,6.80375223,4469.9,4469.8,0.312]
[1759886273182,6.40126223,4469.9,4469.8,0.312]
[1759886273479,6.40371856,4469.9,4469.8,0.312]
[1759886274078,6.17771856,4469.9,4469.8,0.312]
[1759886274780,0.00245633,4469.9,4469.8,0.312]
[1759886275481,0.00245633,4469.9,4469.8,0.7415]
[1759886276073,3.2078,4470.6,4469.8,8.45662106]
[1759886276277,3.2078,4470.6,4470.5,0.8736]
[1759886276584,3.2078,4471.3,4471.2,0.7415]
[1759886276877,6.06210632,4471.3,4471.2,0.7415]
[1759886277078,6.28810632,4471.3,4471.2,0.7415]
[1759886277382,3.2100713,4471.3,4471.2,0.74357909]
[1759886277579,3.2100713,4471.3,4471.2,0.31407909]
[1759886277881,0.0022713,4471.3,4471.2,0.31407909]
[1759886280483,0.0022713,4471.3,4471.2,0.76237909]
[1759886281077,3.2078,4471.9,4471.2,0.76237909]
[1759886281272,3.2078,4473.0,4472.7,0.85053]
[1759886281478,0.216,4473.5,4472.7,0.85053]
[1759886281479,0.226,4473.3,4472.8,0.771]
[1759886281683,0.226,4473.3,4472.8,0.3227]
[1759886282285,2.91055968,4472.9,4472.8,0.3227]
[1759886282983,0.02415431,4472.9,4472.8,3.5305]
[1759886283184,0.02415431,4472.9,4472.8,3.71145]
[1759886283589,4.31e-06,4472.9,4472.8,3.71145]
[1759886284881,3.83591,4474.1,4474.0,0.1294]
[1759886285078,3.83591,4474.1,4474.0,0.4521]
[1759886285281,6.27325887,4474.1,4474.0,0.4521]
[1759886285583,2.83945887,4474.1,4474.0,0.4521]
[1759886285889,2.84192974,4474.1,4474.0,0.4521]
[1759886287086,0.40215,4473.7,4473.5,0.1294]
[1759886287288,8.84721974,4474.1,4473.3,0.3227]
[1759886287289,0.40217,4473.5,4473.3,0.3227]
[1759886287487,0.4022,4473.1,4473.0,0.4521]
[1759886287786,0.40222,4472.9,4472.8,3.2078]
[1759886288091,0.40222,4472.9,4472.8,3.5305]
[1759886288092,2.8799234,4472.9,4472.8,3.5305]
[1759886288489,3.28408875,4473.0,4472.9,0.3227]
[1759886288686,0.40221,4473.0,4472.9,0.3227]
[1759886288889,3.28408875,4473.0,4472.9,0.3227]
[1759886289887,2.88187875,4473.0,4472.9,0.3227]
[1759886290192,1.00518,4474.6,4473.0,0.53161]
[1759886290193,3.18287974,4473.1,4473.0,0.53161]
[1759886290489,0.226,4473.1,4473.0,0.85431]
[1759886290688,2.95687974,4473.7,4473.5,0.1294]
[1759886290990,0.40215,4473.7,4473.6,0.3227]
[1759886291190,0.226,4473.7,4473.6,0.40215]
[1759886291389,0.40458087,4474.1,4473.6,0.3227]
[1759886291589,0.40458087,4474.1,4474.0,0.1294]
[1759886291793,0.40458087,4474.1,4474.0,0.4521]
[1759886292092,3.47086224,4474.1,4474.0,0.4521]
[1759886293796,3.24486224,4474.1,4474.0,0.4521]
[1759886294086,3.47086224,4474.1,4474.0,0.4521]
[1759886294686,2.84275224,4474.1,4474.0,0.4521]
[1759886295194,3.06875224,4474.1,4474.0,0.9004]
[1759886295388,2.84275224,4474.1,4474.0,0.9004]
[1759886295593,0.00247087,4474.1,4474.0,0.9004]
[1759886296289,3.2078,4475.2,4474.0,5.9004]
[1759886296490,3.2828,4475.2,4475.1,0.72472]
[1759886296889,6.13597858,4475.2,4475.1,0.3227]
[1759886297088,2.92817858,4475.2,4475.1,0.3227]
[1759886297394,2.85498594,4475.2,4475.1,0.72679599]
[1759886297596,3.29948594,4475.2,4475.1,0.00207599]
[1759886298096,3.08098594,4475.2,4475.1,0.32477599]
[1759886298491,2.85498594,4475.2,4475.1,0.32477599]
[1759886298792,3.08098594,4475.2,4475.1,0.32477599]
[1759886299290,0.00180736,4475.2,4475.1,3.53257599]
[1759886301892,0.192,4475.9,4475.1,4.21492599]
[1759886302092,0.192,4475.9,4475.8,0.72466]
[1759886302488,3.13093926,4475.9,4475.8,0.72466]
[1759886302795,3.13093926,4475.9,4475.8,1.17296]
[1759886303097,2.94062337,4475.9,4475.8,1.17296]
[1759886303894,0.00168411,4475.9,4475.8,1.17296]
[1759886304397,0.20728411,4475.9,4475.8,1.17296]
[1759886304795,0.00168411,4475.9,4475.8,1.17296]
[1759886305290,0.20728411,4475.9,4475.8,1.17296]
[1759886305798,0.00168411,4475.9,4475.8,1.17296]
[1759886308595,0.21668411,4475.9,4475.8,1.17296]
[1759886308990,0.21668411,4475.9,4475.8,0.771]
[1759886309195,3.72452742,4475.9,4475.8,0.771]
[1759886309396,4.19926833,4475.9,4475.8,0.5469]
[1759886309596,3.79731833,4475.9,4475.8,0.7588]
[1759886309899,3.58111833,4475.9,4475.8,0.7588]
[1759886310803,3.58111833,4475.9,4475.8,1.16076]
[1759886311000,3.98306833,4475.9,4475.8,1.16076]
[1759886311700,1.05137,4475.7,4475.2,0.3104]
[1759886311904,0.4312,4475.5,4475.4,0.71239]
[1759886312108,0.6494,4475.5,4475.4,0.3104]
[1759886312409,2.85559243,4475.5,4475.4,0.7417]
[1759886312908,3.28679243,4475.5,4475.4,0.7417]
[1759886313201,0.40199,4475.4,4475.3,0.402]
[1759886313399,1.05139,4475.4,4475.3,0.3104]
[1759886313604,4.44930723,4475.4,4475.3,0.3104]
[1759886315004,4.44930723,4475.4,4475.1,3.61189599]
[1759886315005,0.6494,4475.2,4475.1,3.61189599]
[1759886315199,1.12443255,4475.2,4475.1,3.61189599]
[1759886315402,3.96758325,4475.2,4475.1,3.20987599]
[1759886315599,3.31818325,4475.2,4475.1,3.95157599]
[1759886315801,0.47503255,4475.2,4475.1,3.95157599]
[1759886316004,0.226,4475.4,4475.3,0.7417]
[1759886316205,0.00168411,4475.9,4475.8,0.2194]
[1759886316206,0.21668411,4475.9,4475.8,0.2194]
[1759886316409,0.44268411,4475.9,4475.8,4.35146]
[1759886316600,3.17620404,4475.9,4475.8,4.35146]
[1759886316797,3.87523403,4475.9,4475.8,4.35146]
[1759886317110,0.4747141,4475.9,4475.8,3.92016]
[1759886317302,0.00168411,4475.9,4475.8,3.92016]
[1759886317503,0.00168411,4475.9,4475.8,44.72016]
[1759886318305,0.00168411,4475.9,4475.8,3.92016]
[1759886318808,0.00168411,4475.9,4475.8,44.72016]
[1759886319006,2.86424935,4475.9,4475.8,0.3104]
[1759886319216,3.33738361,4475.9,4475.8,3.5182]
[1759886320809,3.33738361,4475.9,4475.8,8.7442]
[1759886320810,0.47481837,4475.9,4475.8,8.7442]
[1759886321004,1.19741157,4477.0,4476.9,0.3083]
[1759886321313,1.59924157,4477.2,4477.1,0.3083]
[1759886321809,4.84566572,4477.2,4477.1,0.3083]
[1759886322011,4.84754249,4477.2,4477.1,0.3083]
[1759886322610,4.52294249,4477.2,4477.0,0.71015]
[1759886322914,0.3246,4477.1,4477.0,0.71015]
[1759886323308,3.24465759,4477.1,4477.0,0.71015]
[1759886324416,2.92005759,4477.1,4477.0,0.71015]
[1759886325412,0.22094738,4478.0,4477.5,1.00452]
[1759886325616,0.1313,4478.0,4477.9,3.60957]